bitfinex-derivatives/quotes_ETHF0:USTF0_20240922
["timestamp","ask_amount","ask_price","bid_price","bid_amount"]
[1727012601797,3.2078,2573.7,2573.2,8.3249]
[1727012601997,3.2078,2573.7,2573.6,0.38854]
[1727012602193,7.0934,2573.7,2573.2,0.9715]
[1727012602391,0.38855,2573.5,2573.3,0.38858]
[1727012602692,1.1357,2573.6,2573.4,0.38856]
[1727012602885,3.2078,2573.7,2573.5,0.38854]
[1727012603293,3.2078,2573.7,2573.6,0.38854]
[1727012604099,3.2078,2573.7,2573.3,0.3949]
[1727012604100,3.2078,2573.7,2573.5,0.38854]
[1727012604801,3.2078,2573.7,2573.6,0.38854]
[1727012604996,3.2078,2573.7,2573.5,0.38854]
[1727012606008,3.2078,2573.7,2573.6,0.38854]
[1727012608300,13.0934,2573.7,2572.8,7.3098]
[1727012608506,3.2078,2573.4,2573.2,0.77558]
[1727012609299,3.59637,2573.4,2573.2,0.77558]
[1727012609800,3.2078,2573.4,2573.2,0.77558]
[1727012610502,3.59637,2573.4,2573.2,0.77558]
[1727012610809,3.59637,2573.4,2573.2,0.77559]
[1727012610810,3.2078,2573.4,2573.2,0.77559]
[1727012611010,3.2078,2573.4,2573.3,0.3817]
[1727012612411,3.2078,2573.4,2573.3,0.77028]
[1727012613608,0.3886,2573.2,2573.0,0.38862]
[1727012614003,4.2779,2573.1,2573.0,0.38862]
[1727012618010,4.2779,2573.1,2572.9,7.7]
[1727012618214,4.2779,2573.1,2573.0,0.38863]
[1727012618415,7.4857,2573.1,2573.0,0.38863]
[1727012618608,7.4857,2573.1,2572.9,7.7]
[1727012618803,7.4857,2573.1,2573.0,0.38863]
[1727012620518,4.2779,2573.1,2573.0,0.38863]
[1727012620712,4.2779,2573.1,2572.9,7.7]
[1727012621016,7.87432,2573.1,2572.9,0.38864]
[1727012621410,7.87432,2573.1,2572.9,8.08864]
[1727012623216,7.87432,2573.1,2572.9,7.7]
[1727012623217,0.38863,2573.0,2572.9,7.7]
[1727012623417,1.16593,2573.0,2572.9,7.7]
[1727012623724,5.05233,2573.0,2572.9,7.7]
[1727012624214,4.6637,2573.0,2572.9,7.7]
[1727012624409,3.8864,2573.0,2572.9,7.7]
[1727012624607,3.8864,2573.0,2572.9,8.08864]
[1727012624810,3.8864,2573.0,2572.9,7.7]
[1727012625311,3.8864,2573.0,2572.9,8.46054]
[1727012625510,3.2078,2573.1,2573.0,0.38863]
[1727012625719,1.00947472,2573.3,2573.0,0.7832]
[1727012625917,1.39867472,2573.4,2573.0,0.7832]
[1727012626118,1.00947472,2573.4,2573.3,0.38858]
[1727012626919,4.21661982,2573.5,2573.4,0.38857]
[1727012627120,4.21661905,2573.5,2573.4,0.38857]
[1727012627323,3.2078,2573.5,2573.4,0.38857]
[1727012628024,0.757,2573.9,2573.4,0.38857]
[1727012628025,1.00881905,2574.0,2573.5,0.97139]
[1727012628325,2.40915708,2574.3,2573.8,3.2078]
[1727012628326,1.00881905,2574.3,2573.8,3.2078]
[1727012628522,1.00881905,2574.4,2574.3,0.38843]
[1727012628918,1.51421208,2574.5,2574.3,0.38843]
[1727012628919,2.52303113,2574.5,2574.4,0.38842]
[1727012629123,2.52303113,2574.5,2574.4,0.78452]
[1727012629124,1.00881905,2574.5,2574.4,0.78452]
[1727012629431,1.00881905,2574.8,2574.4,7.8765]
[1727012629624,1.00881905,2574.9,2574.4,1.1549]
[1727012629814,1.00881905,2574.9,2574.4,4.3627]
[1727012630021,1.00881905,2574.9,2574.4,1.1549]
[1727012630318,1.00881905,2574.9,2574.7,0.38836]
[1727012630527,1.39714905,2575.0,2574.7,0.38836]
[1727012632528,0.38833,2575.0,2574.7,0.38836]
[1727012632826,4.21661905,2575.1,2574.7,0.38836]
[1727012632827,4.60493905,2575.1,2574.7,0.38836]
[1727012633226,4.21661905,2575.1,2574.8,0.38835]
[1727012633534,4.60492905,2575.1,2574.8,0.38835]
[1727012633721,4.21661905,2575.1,2574.8,0.38834]
[1727012633921,3.2078,2575.1,2574.8,0.38834]
[1727012635527,3.2078,2575.1,2574.9,0.38833]
[1727012636930,3.2078,2575.1,2575.0,0.38833]
[1727012639536,3.2078,2575.3,2575.1,0.3883]
[1727012640625,3.2078,2575.3,2574.6,5.8858]
[1727012640928,3.2078,2575.3,2575.1,0.3883]
[1727012641231,3.2078,2575.3,2575.2,0.37]
[1727012642831,3.2078,2575.3,2575.2,0.75829]
[1727012643016,3.2078,2575.3,2575.2,0.37]
[1727012643223,3.59608,2575.3,2575.2,0.37]
[1727012644137,0.38832,2575.1,2574.7,3.38706]
[1727012644436,0.38832,2575.1,2574.8,0.38835]
[1727012647734,3.2078,2575.0,2574.8,0.38835]
[1727012648030,3.2078,2575.0,2574.7,0.3687]
[1727012648332,3.2078,2575.0,2574.9,0.38834]
[1727012650133,3.2078,2575.0,2574.9,4.27154]
[1727012651126,0.376,2575.5,2575.0,0.38831]
[1727012651127,3.2078,2575.1,2575.0,0.38831]
[1727012651324,3.2078,2575.1,2575.0,0.78551]
[1727012651527,3.2078,2575.1,2575.0,0.3972]
[1727012651727,3.2078,2575.1,2575.0,0.78553]
[1727012655543,0.38828,2575.3,2575.0,0.3972]
[1727012655740,3.2078,2575.4,2575.0,0.3972]
[1727012656048,0.38816,2576.1,2575.3,3.2078]
[1727012656343,0.3954,2576.1,2576.0,0.38817]
[1727012656736,0.7587,2576.3,2576.2,0.38814]
[1727012657038,3.2078,2576.3,2576.2,0.38814]
[1727012657337,3.2078,2576.3,2575.7,3.60053]
[1727012657338,3.2078,2576.3,2575.7,2.63]
[1727012657543,3.2078,2576.3,2575.6,3.6018]
[1727012657739,0.38815,2576.2,2575.9,0.38818]
[1727012658041,0.38815,2576.2,2576.0,0.38817]
[1727012658242,3.59594,2576.3,2576.0,0.38817]
[1727012658543,3.59594,2576.3,2576.1,0.38816]
[1727012659047,3.2078,2576.3,2576.1,0.38815]
[1727012660742,3.59593,2576.3,2576.1,0.38815]
[1727012660939,3.2078,2576.3,2576.1,0.38815]
[1727012662451,3.59593,2576.3,2576.1,0.38815]
[1727012662847,0.38814,2576.2,2575.9,0.76478]
[1727012663046,0.38814,2576.2,2576.0,0.38817]
[1727012663345,0.38815,2576.2,2575.9,0.76478]
[1727012663549,3.59594,2576.3,2576.0,0.38817]
[1727012667350,0.38814,2576.2,2575.9,3.39378]
[1727012667540,0.77214,2576.2,2575.9,3.39378]
[1727012667947,0.77214,2576.2,2576.0,0.38817]
[1727012668149,0.77214,2576.2,2575.9,3.0056]
[1727012668449,0.77214,2576.2,2575.9,3.39378]
[1727012669143,0.38817,2576.1,2575.8,0.3882]
[1727012669339,0.38817,2576.1,2575.8,3.0172]
[1727012669952,0.77215,2576.2,2575.9,0.38818]
[1727012670651,0.38816,2576.1,2575.9,0.38818]
[1727012671750,0.38816,2576.1,2575.8,2.629]
[1727012671751,0.77215,2576.2,2575.8,2.629]
[1727012671950,0.77215,2576.2,2575.9,0.38818]
[1727012673055,0.38816,2576.1,2575.9,0.38818]
[1727012673244,0.384,2576.2,2576.1,0.38816]
[1727012673449,3.2078,2576.3,2576.2,0.38814]
[1727012674057,0.38812,2576.4,2576.2,0.38814]
[1727012674258,0.3954,2576.5,2576.4,0.38811]
[1727012674448,3.2078,2576.6,2576.5,0.3881]
[1727012674760,1.51421208,2576.9,2576.8,0.38805]
[1727012674761,1.00881905,2576.9,2576.8,0.38805]
[1727012674959,0.38803,2577.0,2576.8,0.38805]
[1727012675255,1.40561905,2577.1,2576.7,0.38806]
[1727012675256,0.38804,2576.9,2576.7,0.38806]
[1727012675450,3.59585,2576.9,2576.7,7.7]
[1727012675647,0.38805,2576.8,2576.7,7.7]
[1727012675851,3.59585,2576.9,2576.7,0.38806]
[1727012676049,3.2078,2576.9,2576.7,0.38806]
[1727012676250,3.59584,2576.9,2576.7,0.38806]
[1727012676451,0.38805,2576.8,2576.6,8.48138]
[1727012676755,3.59585,2576.9,2576.7,0.38806]
[1727012677259,3.2078,2576.9,2576.7,0.38806]
[1727012677758,3.2078,2576.9,2576.8,0.38805]
[1727012677956,3.2078,2576.9,2576.7,0.38806]
[1727012678258,3.2078,2576.9,2576.6,8.0933]
[1727012678259,3.2078,2576.9,2576.8,0.38805]
[1727012678757,3.59584,2576.9,2576.7,0.38806]
[1727012679657,0.38805,2576.8,2576.6,8.0933]
[1727012679858,0.38805,2576.8,2576.6,8.48138]
[1727012680066,3.2078,2576.9,2576.8,0.38805]
[1727012687866,3.2078,2576.9,2576.8,2.96605]
[1727012688060,3.2078,2576.9,2576.8,6.84685]
[1727012690559,3.2078,2576.9,2576.8,4.26885]
[1727012690858,3.2078,2576.9,2576.8,2.96605]
[1727012691060,3.2078,2576.9,2576.8,6.84685]
[1727012691461,3.2078,2576.9,2576.8,4.26885]
[1727012691665,3.2078,2576.9,2576.8,6.84685]
[1727012692671,3.2078,2576.9,2576.8,2.96605]
[1727012695867,3.2078,2576.9,2576.8,0.38805]
[1727012698759,3.2078,2576.9,2576.6,0.3933]
[1727012698966,0.38806,2576.8,2576.6,0.78137]
[1727012700568,0.38813,2576.3,2576.2,4.102]
[1727012700778,0.38813,2576.3,2576.1,2.96615]
[1727012700779,0.38813,2576.3,2576.1,0.38815]
[1727012700964,3.2078,2576.4,2576.0,8.47466]
[1727012701167,3.59596,2576.1,2575.6,4.102]
[1727012701375,3.2078,2576.1,2575.9,2.96618]
[1727012701566,0.38815,2576.2,2575.9,0.38818]
[1727012701567,1.77803523,2576.2,2575.9,0.38818]
[1727012701767,1.77803523,2576.2,2575.8,10.278]
[1727012701768,3.59597,2576.1,2575.8,10.278]
[1727012702478,3.2078,2576.1,2575.8,10.6652]
[1727012702674,3.59597,2576.1,2575.8,10.6652]
[1727012703187,3.2078,2576.1,2575.9,0.38818]
[1727012703380,3.59596,2576.1,2575.8,10.6652]
[1727012703576,3.2078,2576.1,2575.9,0.38818]
[1727012704677,3.59596,2576.1,2575.9,0.38818]
[1727012705074,3.59596,2576.1,2575.8,10.277]
[1727012705075,3.59596,2576.1,2575.8,10.6652]
[1727012705276,0.38819,2576.0,2575.8,10.277]
[1727012705477,3.2078,2576.1,2575.8,10.277]
[1727012705676,0.38819,2575.9,2575.8,10.277]
[1727012705878,0.38819,2575.9,2575.8,7.7]
[1727012706081,0.76729,2575.9,2575.8,7.7]
[1727012707981,4.64969,2575.9,2575.8,7.7]
[1727012709289,1.37768523,2576.0,2575.8,7.7]
[1727012709290,1.76586523,2576.0,2575.8,7.7]
[1727012709491,1.76586523,2576.0,2575.8,8.0882]
[1727012709688,0.75618,2576.0,2575.8,7.7]
[1727012710395,0.368,2576.0,2575.8,8.0882]
[1727012710899,0.75617,2576.0,2575.8,8.0882]
[1727012711095,0.75617,2576.0,2575.8,7.7]
[1727012711898,1.76585523,2576.0,2575.8,7.7]
[1727012712096,0.75617,2576.0,2575.8,7.7]
[1727012712896,0.75617,2576.0,2575.8,8.0791]
[1727012713891,1.35867,2575.9,2575.8,7.7]
[1727012714091,0.38826,2575.4,2575.3,0.3791]
[1727012714295,0.3883,2575.2,2575.0,0.389]
[1727012714498,3.2078,2575.1,2575.0,8.089]
[1727012714887,3.2078,2575.1,2575.0,8.47733]
[1727012715093,0.78049,2575.3,2575.1,0.38831]
[1727012715294,0.38831,2575.1,2575.0,7.7]
[1727012715993,0.38831,2575.1,2574.8,2.96635]
[1727012715994,4.27152,2575.1,2574.8,0.38835]
[1727012716201,0.38832,2575.1,2574.8,0.38835]
[1727012716589,3.5961,2575.2,2574.9,0.38833]
[1727012717400,3.5961,2575.2,2575.0,0.38832]
[1727012719296,3.5961,2575.2,2574.8,0.38836]
[1727012719297,0.38831,2575.1,2574.8,0.38836]
[1727012719493,0.38831,2575.1,2574.9,0.38834]
[1727012719693,3.2078,2575.2,2574.7,0.3903]
[1727012720004,3.2078,2575.2,2575.0,0.38831]
[1727012720900,3.2078,2575.2,2575.1,0.3955]
[1727012723304,3.2078,2575.2,2575.1,4.66701]
[1727012723504,3.2078,2575.2,2575.1,5.04021]
[1727012724197,3.5896,2575.9,2575.1,11.62268]
[1727012724499,3.5896,2575.9,2575.1,1.73948]
[1727012724895,0.38821,2575.8,2575.6,0.38823]
[1727012725092,0.3882,2575.8,2575.6,0.38823]
[1727012725296,0.38822,2575.7,2575.5,0.38824]
[1727012725497,0.38822,2575.8,2575.6,0.38823]
[1727012725799,3.5896,2575.9,2575.5,0.38824]
[1727012725800,0.38823,2575.7,2575.5,0.38824]
[1727012726003,3.5896,2575.9,2575.4,2.578]
[1727012726297,3.5896,2575.9,2575.2,10.66629]
[1727012726298,0.38827,2575.4,2575.2,10.66629]
[1727012726499,3.2078,2575.6,2575.2,10.66629]
[1727012726500,0.38826,2575.5,2575.2,10.66629]
[1727012727007,0.38827,2575.4,2575.2,10.66629]
[1727012727205,0.76777,2575.4,2575.2,10.66629]
[1727012728601,0.38828,2575.3,2575.2,7.7]
[1727012728802,0.38829,2575.2,2575.1,0.3955]
[1727012729006,3.2078,2575.3,2574.9,3.2078]
[1727012729007,0.38832,2575.1,2574.9,3.2078]
[1727012729200,0.38833,2575.0,2574.9,3.2078]
[1727012729508,0.38832,2575.1,2574.9,7.7]
[1727012729700,0.38832,2575.1,2574.9,8.08834]
[1727012729900,0.38832,2575.1,2574.9,0.38834]
[1727012730097,0.7664,2575.2,2574.9,0.38834]
[1727012730299,0.7664,2575.2,2574.8,0.7699]
[1727012730300,0.3781,2575.2,2574.8,1.15825]
[1727012730503,3.59613,2575.0,2574.8,8.85825]
[1727012731508,0.38834,2574.9,2574.8,8.4699]
[1727012731716,0.38834,2574.9,2574.8,7.7]
[1727012732010,0.75454,2574.9,2574.8,7.7]
[1727012732907,0.75454,2574.9,2574.8,8.08836]
[1727012732908,0.3662,2574.9,2574.8,8.08836]
[1727012733109,3.2078,2575.0,2574.9,0.38834]
[1727012735804,0.38831,2575.2,2574.9,0.38834]
[1727012736608,0.38831,2575.2,2575.0,0.38832]
[1727012736609,3.59611,2575.2,2575.0,0.38832]
[1727012736814,0.38829,2575.3,2575.1,0.4049]
[1727012737513,0.38829,2575.3,2575.1,0.79321]
[1727012737810,0.75448,2575.4,2575.1,0.79321]
[1727012738116,0.3662,2575.4,2575.1,0.4049]
[1727012738414,3.59605,2575.5,2575.3,0.38827]
[1727012739403,3.59605,2575.5,2575.3,0.38828]
[1727012739608,3.2078,2575.5,2575.2,0.77019]
[1727012740009,0.38827,2575.4,2575.2,0.77019]
[1727012740409,0.38828,2575.3,2575.1,0.7932]
[1727012740711,0.38827,2575.4,2575.1,0.7932]
[1727012740915,3.59606,2575.5,2575.2,0.38829]
[1727012741116,0.38827,2575.4,2575.2,0.38829]
[1727012741917,0.3994,2575.7,2575.5,0.38824]
[1727012742122,0.3994,2575.7,2575.6,0.75323]
[1727012742611,0.78518,2576.0,2575.6,0.365]
[1727012742814,4.21709698,2576.1,2575.9,0.38818]
[1727012742815,3.5964,2576.1,2575.9,0.38818]
[1727012743117,3.98457,2576.1,2575.9,0.38818]
[1727012743312,3.98457,2576.1,2575.7,0.3715]
[1727012743313,3.98457,2576.1,2576.0,7.7]
[1727012743516,4.99386698,2576.1,2576.0,7.7]
[1727012745016,4.99386698,2576.1,2575.8,0.38819]
[1727012745217,0.38818,2576.0,2575.7,0.3715]
[1727012745421,1.39748698,2576.0,2575.8,7.7]
[1727012745618,1.00929698,2575.9,2575.8,7.7]
[1727012745813,0.38822,2575.7,2575.6,0.365]
[1727012746317,4.60169698,2575.8,2575.4,7.7]
[1727012746523,0.38825,2575.5,2575.4,7.7]
[1727012746721,0.38825,2575.5,2575.3,0.76627]
[1727012747220,1.39756698,2575.4,2575.1,11.1178]
[1727012748527,1.00929698,2575.4,2575.1,8.46981]
[1727012748815,0.38829,2575.2,2575.1,0.3815]
[1727012749011,3.59609,2575.2,2575.1,0.3815]
[1727012749214,0.38831,2575.1,2575.0,0.378]
[1727012750115,4.89249698,2575.1,2574.8,0.38835]
[1727012750315,1.00929698,2575.1,2574.9,0.3967]
[1727012750821,1.00929698,2575.0,2574.9,0.3967]
[1727012751413,1.00929698,2575.1,2574.9,0.3967]
[1727012752016,1.00929698,2575.1,2574.9,0.78504]
[1727012752215,4.59089698,2575.2,2574.9,0.78504]
[1727012752620,4.59089698,2575.2,2575.0,0.38832]
[1727012753222,4.21709698,2575.2,2574.9,0.3967]
[1727012753420,4.21709698,2575.2,2575.1,0.38831]
[1727012754919,1.51394547,2575.3,2575.2,0.38829]
[1727012754920,1.00929698,2575.3,2575.2,0.38829]
[1727012755120,1.00929698,2575.5,2575.4,0.38826]
[1727012755521,1.00929698,2575.5,2575.4,8.08826]
[1727012755819,1.00929698,2575.5,2575.4,8.46676]
[1727012756218,1.00929698,2575.6,2575.5,0.38825]
[1727012756822,1.01168597,2575.7,2575.6,0.38823]
[1727012757121,1.90217547,2575.7,2575.5,0.38824]
[1727012757326,1.01176358,2575.6,2575.5,0.38824]
[1727012757516,1.01176358,2575.6,2575.4,8.0785]
[1727012757517,1.01176358,2575.6,2575.4,8.46676]
[1727012758122,1.01176358,2575.6,2575.5,0.38825]
[1727012758322,1.40000358,2575.6,2575.4,8.46676]
[1727012758622,1.01176358,2575.5,2575.4,8.0785]
[1727012759024,1.40001358,2575.5,2575.4,0.3785]
[1727012759224,0.38825,2575.5,2575.4,0.3785]
[1727012759925,1.51394547,2575.5,2575.4,0.3785]
[1727012760717,1.51394547,2575.5,2575.4,0.76676]
[1727012761330,1.01245614,2575.5,2575.4,0.76676]
[1727012761630,1.0125153,2575.5,2575.4,0.76676]
[1727012762824,1.0125153,2575.5,2575.4,0.3785]
[1727012763025,1.90219547,2575.5,2575.4,0.3785]
[1727012763225,2.30389547,2575.5,2575.4,0.3785]
[1727012763425,0.38829,2575.3,2574.9,4.21993615]
[1727012763625,1.01248201,2575.3,2575.0,0.3808]
[1727012763928,1.01248201,2575.1,2575.0,8.0808]
[1727012764734,1.01248201,2575.1,2575.0,8.46912]
[1727012766443,1.01248201,2575.2,2575.1,0.38831]
[1727012766825,1.51394547,2575.2,2575.1,0.38831]
[1727012767137,1.90223547,2575.2,2575.0,8.46911]
[1727012767341,1.01184505,2575.1,2575.0,8.46911]
[1727012768043,1.01184505,2575.2,2575.1,0.38831]
[1727012769535,1.01184505,2575.3,2575.2,0.38829]
[1727012771429,5.11001547,2575.4,2575.3,0.38828]
[1727012771630,5.3042311,2575.4,2575.3,0.38828]
[1727012772035,4.9159611,2575.4,2575.3,0.38828]
[1727012773437,4.9159611,2575.4,2575.0,8.0808]
[1727012773438,3.40201563,2575.4,2575.0,8.0808]
[1727012773631,3.40201563,2575.4,2575.0,8.46911]
[1727012773632,1.40017569,2575.2,2575.0,8.46911]
[1727012773830,1.01184192,2575.2,2575.1,0.38831]
[1727012774133,3.8832,2575.1,2574.6,4.102]
[1727012774332,0.3884,2574.5,2574.4,0.7511]
[1727012774535,3.5962,2574.5,2574.4,0.7511]
[1727012774742,4.6079506,2574.5,2574.4,0.7511]
[1727012774933,0.38842,2574.4,2574.3,7.7]
[1727012775132,1.4001706,2574.4,2574.3,7.7]
[1727012775336,1.0117506,2574.4,2574.3,7.7]
[1727012775539,1.4001706,2574.4,2574.3,7.7]
[1727012776439,1.0117506,2574.4,2574.3,7.7]
[1727012777245,1.4001606,2574.5,2574.3,7.7]
[1727012777938,1.0117506,2574.5,2574.3,7.7]
[1727012778145,1.0117506,2574.6,2574.3,7.7]
[1727012778340,1.0117506,2574.7,2574.6,0.38839]
[1727012778535,1.0117506,2574.7,2574.5,0.38839]
[1727012778840,1.0117506,2574.7,2574.3,7.7]
[1727012779035,1.0117506,2574.4,2574.1,0.38845]
[1727012779238,3.2078,2574.3,2574.1,0.38845]
[1727012779440,3.589,2574.3,2574.1,8.08845]
[1727012781449,0.38845,2574.2,2574.1,7.7]
[1727012781745,0.38845,2574.2,2573.7,0.75441]
[1727012781746,0.38848,2574.0,2573.7,0.75441]
[1727012781949,0.3812,2573.9,2573.7,0.3659]
[1727012782137,0.7697,2573.9,2573.7,0.3659]
[1727012782539,0.7697,2573.9,2573.6,8.47543]
[1727012782742,0.3779,2573.8,2573.6,7.7]
[1727012782949,3.2078,2573.7,2573.6,7.7]
[1727012783248,3.97421,2573.8,2573.6,7.7]
[1727012783449,3.5857,2573.8,2573.6,8.08853]
[1727012783837,3.8856,2573.7,2573.2,4.102]
[1727012784042,3.2078,2573.5,2573.2,4.498]
[1727012784342,3.59636,2573.5,2573.2,12.198]
[1727012784741,0.38857,2573.4,2573.2,12.198]
[1727012784937,0.38857,2573.4,2573.2,8.096]
[1727012785341,0.38858,2573.4,2573.2,7.7]
[1727012785543,0.38858,2573.3,2573.2,7.7]
[1727012786047,4.27498,2573.3,2573.2,7.7]
[1727012786255,4.65918,2573.3,2573.2,7.7]
[1727012786647,4.65918,2573.3,2572.9,0.396]
[1727012786648,4.2706,2573.3,2572.9,0.396]
[1727012786848,3.5964,2573.2,2572.9,0.396]
[1727012787248,3.5964,2573.2,2573.0,7.7]
[1727012787750,3.2078,2573.2,2573.1,0.38861]
[1727012787954,0.38854,2573.6,2572.9,0.396]
[1727012788351,0.38854,2573.6,2573.3,0.38858]
[1727012788656,3.2078,2573.4,2573.1,7.7]
[1727012788845,0.3842,2573.3,2573.1,7.7]
[1727012789045,0.3978,2573.2,2573.1,7.7]
[1727012789241,4.2842,2573.2,2573.1,7.7]
[1727012789458,0.7592,2573.3,2573.1,7.7]
[1727012789753,0.375,2573.3,2573.2,0.3886]
[1727012790351,0.375,2573.3,2573.1,8.0886]
[1727012790654,3.2078,2573.4,2573.3,0.38858]
[1727012791045,0.3859,2573.7,2573.5,0.38854]
[1727012791046,3.2078,2573.7,2573.5,0.38854]
[1727012791247,3.2078,2573.7,2573.2,0.7832]
[1727012791248,3.2078,2573.7,2573.6,0.76824]
[1727012791755,7.0934,2573.7,2573.6,0.3797]
[1727012792555,7.0934,2573.7,2573.6,0.76824]
[1727012793543,13.0934,2573.7,2573.1,7.7]
[1727012793749,0.3762,2573.6,2573.1,8.0902]
[1727012794148,0.76474,2573.6,2573.3,0.38857]
[1727012795457,3.2078,2573.7,2573.1,8.0902]
[1727012795659,3.2078,2573.7,2573.2,0.3764]
[1727012795959,3.2078,2573.7,2573.5,0.38854]
[1727012796957,3.2078,2573.7,2573.6,0.38854]
[1727012797359,7.0934,2573.7,2573.5,0.38854]
[1727012797551,3.2078,2573.7,2573.6,0.38854]
[1727012797960,7.0934,2573.7,2573.6,0.38854]
[1727012798161,7.0934,2573.7,2573.5,0.38854]
[1727012798351,3.2078,2573.7,2573.5,0.38854]
[1727012799152,3.2078,2573.7,2573.6,0.384]
[1727012799662,7.0934,2573.7,2573.6,0.384]
[1727012801164,7.0934,2573.7,2573.6,0.77254]
[1727012801363,3.2078,2573.7,2573.6,0.77254]
[1727012802757,3.2078,2573.7,2573.6,4.65814]
[1727012803263,0.38845,2574.2,2573.9,0.38848]
[1727012804458,0.38845,2574.2,2574.0,0.38847]
[1727012804862,0.38845,2574.2,2573.9,0.38848]
[1727012805859,0.38845,2574.2,2574.0,0.38848]
[1727012806062,0.38845,2574.2,2573.8,0.3846]
[1727012806063,0.38846,2574.1,2573.9,0.38848]
[1727012806366,3.2078,2574.0,2573.9,0.38848]
[1727012806965,0.38851,2573.8,2573.6,0.384]
[1727012807159,13.0926,2574.0,2573.6,0.384]
[1727012807160,0.3967,2573.9,2573.6,0.384]
[1727012807360,3.59632,2573.7,2573.6,0.384]
[1727012812163,3.59632,2573.7,2573.4,0.3698]
[1727012812164,0.38855,2573.5,2573.4,0.3698]
[1727012813172,0.38855,2573.5,2573.3,0.38858]
[1727012813567,0.38854,2573.6,2573.3,0.38858]
[1727012814466,3.59637,2573.4,2573.1,0.3886]
[1727012814770,0.3886,2573.2,2573.0,0.3834]
[1727012814967,3.2078,2573.1,2573.0,0.3834]
[1727012816367,3.2078,2573.1,2572.8,8.0766]
[1727012816673,3.59642,2573.1,2572.8,8.46526]
[1727012816968,3.59642,2573.1,2572.8,0.76526]
[1727012817968,3.59642,2573.1,2572.8,0.3766]
[1727012817969,0.38863,2573.0,2572.8,0.3766]
[1727012819867,3.2078,2573.1,2572.8,0.76525]
[1727012819868,3.59642,2573.1,2572.8,0.76525]
[1727012820569,4.604596,2573.1,2572.8,0.76525]
[1727012820769,0.38863,2573.0,2572.8,0.76525]
[1727012820970,1.396806,2573.0,2572.8,0.76525]
[1727012821479,1.008176,2573.0,2572.8,0.76525]
[1727012821875,4.604596,2573.1,2572.8,0.76525]
[1727012822278,0.38863,2573.0,2572.8,0.76525]
[1727012822973,4.215976,2573.1,2573.0,0.38863]
[1727012823271,1.008176,2573.2,2572.9,0.38864]
[1727012823472,3.2078,2573.1,2572.9,0.38864]
[1727012823873,3.2078,2573.1,2573.0,0.38863]
[1727012824478,4.215976,2573.1,2573.0,0.38863]
[1727012824775,1.008176,2573.1,2573.0,0.38863]
[1727012824969,4.215976,2573.1,2573.0,0.38863]
[1727012825171,1.008176,2573.1,2573.0,0.38863]
[1727012825371,1.008176,2573.2,2573.1,0.38861]
[1727012825575,3.2078,2573.4,2573.3,0.38858]
[1727012825576,4.215976,2573.4,2573.3,0.38858]
[1727012825973,4.91443954,2573.4,2573.3,0.75588]
[1727012826169,3.40217553,2573.4,2573.3,0.75588]
[1727012826373,3.79074553,2573.4,2573.3,0.3673]
[1727012826569,5.80709754,2573.4,2573.3,0.3673]
[1727012827283,3.79074553,2573.4,2573.3,0.3673]
[1727012827580,5.80709754,2573.4,2573.3,0.3673]
[1727012827774,3.79074553,2573.4,2573.3,0.3673]
[1727012827978,3.7907513,2573.4,2573.3,0.3673]
[1727012828380,5.80710331,2573.4,2573.3,0.3673]
[1727012828683,0.3886,2573.2,2572.8,0.38865]
[1727012828878,0.38863,2573.0,2572.8,1.1343]
[1727012829084,0.97169,2572.7,2572.2,2.53486473]
[1727012829379,0.97169,2572.7,2572.1,1.40304589]
[1727012829380,0.38872,2572.4,2572.1,1.40304589]
[1727012829570,3.2078,2572.3,2572.1,0.3891]
[1727012829773,4.21788912,2572.3,2572.1,0.3891]
[1727012830983,4.21788912,2572.3,2571.6,0.38883]
[1727012830984,0.38876,2572.1,2571.6,0.38883]
[1727012831177,4.21788912,2572.0,2571.7,0.3891]
[1727012831479,3.2078,2572.0,2571.7,0.3891]
[1727012831874,4.21788912,2572.1,2571.8,0.38881]
[1727012832075,1.01008912,2572.2,2571.9,0.38879]
[1727012832270,1.51513369,2572.3,2571.9,0.38879]
[1727012832271,3.2078,2572.1,2571.9,0.38879]
[1727012832876,3.2078,2572.1,2571.8,0.3888]
[1727012833276,0.38878,2572.0,2571.7,0.3891]
[1727012833578,3.2078,2572.1,2571.7,0.77792]
[1727012833784,0.38878,2572.0,2571.7,0.77792]
[1727012833978,3.2078,2572.1,2571.7,0.3891]
[1727012833979,0.3888,2571.9,2571.7,0.3891]
[1727012834681,7.0958,2571.8,2571.6,7.7]
[1727012834874,0.38885,2571.6,2571.3,0.3759]
[1727012835073,3.2078,2571.5,2571.3,0.3759]
[1727012835277,3.2078,2571.5,2571.3,8.0759]
[1727012835787,3.2078,2571.5,2571.3,0.76478]
[1727012836180,3.2078,2571.5,2571.3,0.3759]
[1727012837072,3.2078,2571.5,2571.3,0.76478]
[1727012837279,3.2078,2571.5,2571.3,0.3759]
[1727012837681,3.59666,2571.5,2571.3,0.3759]
[1727012837885,3.2078,2571.5,2571.3,0.3759]
[1727012838390,3.59666,2571.5,2571.3,0.3759]
[1727012838582,3.2078,2571.5,2571.3,0.3759]
[1727012839080,3.8888,2571.4,2571.2,0.38889]
[1727012839289,3.2078,2571.5,2571.2,0.38889]
[1727012840484,3.2078,2571.5,2571.1,7.7]
[1727012841080,3.2078,2571.5,2571.3,0.38888]
[1727012841275,3.2078,2571.5,2571.4,0.38887]
[1727012842083,3.2078,2571.5,2571.3,0.38887]